Cogmind - Beta 16.1 @@@ ROGUE MODE // 2026.04.28 @ 14:29:22 Player: KURIIRI Result: Destroyed by XB-JPW(R) with Subdweller Machine Gun Performance ------------- Evolutions (0) 0 Regions Visited (2) 400 Robots Destroyed (33) 165 Value Destroyed (825) 825 Prototype IDs (2) 40 Alien Tech Used (0) 0 Bonus (-53) -53 TOTAL SCORE: 1377 Bonus ------- Friendly Fire -53 Cogmind --------- Core Integrity 0/250 Matter 300/300 Energy 100/100 System Corruption 0% Temperature Cool (0) Movement Rolling (100) Location -10/Subcaves Parts ------- > --- POWER (1) -------- (None) > --- PROPULSION (2) --- Compact Wheel > --- UTILITY (2) ------ (None) > --- WEAPON (2) ------- Subdweller Machine Gun Subdweller Machine Gun > --- INVENTORY (5) ---- Neutrino Core Light Treads Large Matter Pod (150) Hacking Suite Hacking Suite Peak State ------------ > --- POWER ------------ Light Nuclear Core > --- PROPULSION ------- Light Treads Compact Wheel > --- UTILITY ---------- Scrap Shield > --- WEAPON ----------- Subdweller Machine Gun Subdweller Machine Gun > --- INVENTORY -------- Neutrino Core Light Treads Large Matter Pod Hacking Suite Hacking Suite [Rating: 14] Favorites ----------- Power Light Nuclear Core Engine Light Ion Engine Power Core Light Nuclear Core Propulsion Light Treads Treads Light Treads Leg Aluminum Leg Wheel Compact Wheel Utility Large Storage Unit Device Seismic Detector Storage Large Storage Unit Protection Light Armor Plating Weapon Beam Cannon Energy Cannon Beam Cannon Ballistic Gun Subdweller Machine Gun Build | -11 -10 -10 ------- Run | Yrd Mat Sub Slots Evolved . | . . . Power . | . . . Propulsion . | . . . Utility . | . . . Weapon . | . . . Parts Attached 14 | 1 8 5 Power 1 | . 1 . Engine . | . . . Core 1 | . 1 . Reactor . | . . . Propulsion 4 | . 3 1 Treads 2 | . 2 . Leg 1 | . 1 . Wheel 1 | . . 1 Hover . | . . . Flight . | . . . Utility 5 | 1 2 2 Device 1 | 1 . . Storage 1 | . 1 . Processor . | . . . Hackware . | . . . Protection 3 | . 1 2 Artifact . | . . . Weapon 4 | . 2 2 Energy Gun . | . . . Energy Cannon 2 | . 2 . Ballistic Gun 2 | . . 2 Ballistic Cannon . | . . . Launcher . | . . . Special Weapon . | . . . Impact Weapon . | . . . Slashing Weapon . | . . . Piercing Weapon . | . . . Special Melee Weapon . | . . . Unidentified Prototypes . | . . . Parts Lost 4 | . . 4 Power 1 | . . 1 Propulsion 1 | . . 1 Utility 2 | . . 2 Weapon . | . . . Highest Loss Streak 2 | . . 2 To Critical Strikes . | . . . Average Backups 9 | 6 10 5 Power 1 | 1 1 . Propulsion 2 | 4 2 1 Utility 3 | . 4 3 Weapon 1 | 1 2 . Tool/Special . | . . . Unused Backups 16 | . 6 10 Power 3 | . 2 1 Propulsion 1 | . . 1 Utility 7 | . 2 5 Weapon 5 | . 2 3 Tool/Special . | . . . Average Slot Usage (%) 93 | . 99 75 Engine 1 | . 2 . Core 12 | . 11 13 Treads 21 | . 26 6 Wheel 3 | . . 13 Device 5 | . 8 . Storage 10 | . 14 . Protection 7 | . 5 13 Energy Cannon 18 | . 23 6 Ballistic Gun 9 | . 4 21 Peak Build Rating 14 | 7 11 14 Average Rating 10 | 6 9 12 On Entrance 8 | 6 7 11 Avg Prop Armor Cover (%) 4 | . . 4 Naked Turns . | . . . Heaviest Build 34 | 13 34 34 Greatest Support 40 | 20 40 40 Greatest Overweight (x) 1 | . . 1 Average Overweight (x) . | . . . Largest Inventory Capacity 15 | 8 15 15 Average Capacity 11 | 8 13 5 Most Carried 15 | 7 15 14 Average Carried 9 | 6 10 5 Final Capacity 15 | 8 15 5 Final Carried 14 | 7 14 5 Class Distribution -------------------- 79% | Mutant 20% | Subdweller-Mutant Dominant Class ---------------- Mutant | -10/Materials Subdweller-Mutant | -10/Subcaves Resources | -11 -10 -10 ----------- Run | Yrd Mat Sub Matter Collected 809 | 215 493 101 Remotely . | . . . Salvage Created 1124 | 96 724 304 Parts 73 | 7 50 16 Haulers Intercepted 2 | . 2 . Recyclers Shooed 4 | . 4 . Parts Field Recycled . | . . . Retrieved Matter . | . . . Parts Self-Destructed 2 | . . 2 Prevented . | . . . Parts Restored . | . . . Kills | -11 -10 -10 ------- Run | Yrd Mat Sub Combat Hostiles Destroyed 21 | . 13 8 Guns 9 | . 6 3 Cannons 11 | . 7 4 Classes Destroyed 10 | 2 7 1 Worker 1 | . 1 . Builder 1 | . 1 . Tunneler 1 | 1 . . Hauler 2 | . 2 . Recycler 2 | 1 1 . Operator 2 | . 2 . Watcher 3 | . 3 . Swarmer 3 | . 3 . Grunt 10 | . 10 . Subdweller 8 | . . 8 Best Kill Streak 6 | 2 6 5 Combat Bots Only 5 | . 5 5 Max Kills in Single Turn 2 | 1 2 1 Gunslinging . | . . . Exploded . | . . . Melee . | . . . Uniques/NPCs Destroyed . | . . . Combat | -11 -10 -10 -------- Run | Yrd Mat Sub Hostile Shots Fired 99 | . 47 52 Missed 20 | . 9 11 Hits 79 | . 38 41 Projectile 79 | . 38 41 AOE 1 | . . 1 Critical Strikes 3 | . 1 2 Damage Taken 1359 | . 435 924 Core 258 | . 138 120 Absorbed by Shields . | . . . Core Remaining (%) 100 | 100 . . Volleys Fired 88 | 4 58 26 Largest 2 | 2 2 2 Hottest 120 | 40 120 120 Shots Fired 172 | 8 116 48 Gun 106 | 8 70 28 Cannon 66 | . 46 20 Launcher . | . . . Special . | . . . Kinetic 106 | 8 70 28 Thermal 66 | . 46 20 Explosive . | . . . Electromagnetic . | . . . Robot Hit Streak 8 | 4 8 7 Robot Miss Streak 5 | 2 5 2 Penetration Max . | . . . Secondary Targets . | . . . Shots Hit Robots 101 | 5 63 33 Core Hits 47 | 3 30 14 Critical Kills 1 | . . 1 Critical Parts Destroyed . | . . . Critical Strikes 1 | . . 1 Meltdown 1 | . . 1 Melee Attacks . | . . . Impact . | . . . Slashing . | . . . Piercing . | . . . Sneak Attacks . | . . . Combat Hostiles . | . . . Follow-up Attacks . | . . . Damage Inflicted 1802 | 64 1042 696 Guns 1018 | 64 573 381 Cannons 741 | . 428 313 Explosions . | . . . Melee . | . . . Ramming 43 | . 41 2 Kinetic 1018 | 64 573 381 Thermal 741 | . 428 313 Explosive . | . . . Electromagnetic . | . . . Impact . | . . . Slashing . | . . . Piercing . | . . . Highest Corruption . | . . . Average Corruption . | . . . Corruption Purged . | . . . Corruption Blocked . | . . . Overload Shots . | . . . Overflow Damage 16 | . 16 . Projectiles 16 | . 16 . Explosions . | . . . Melee . | . . . Knockbacks . | . . . Impact . | . . . Kinetic . | . . . Secondary . | . . . Self-Inflicted Damage 1 | . . 1 Shots . | . . . Rammed 7 | . 6 1 Targets Rammed 8 | . 7 1 Kicked . | . . . Crushed 1 | . 1 . Highest Temperature 449 | . 449 168 Average Temperature 127 | . 134 97 Received Heat Transfer 384 | . 228 156 Effects 3 | . 3 . Shutdowns 1 | . 1 . Energy Bleed 1 | . 1 . Damage (minor) 1 | . 1 . Siege Activations . | . . . Martial Activations . | . . . Shielding Activations . | . . . Robots Disrupted . | . . . Combat Hostiles . | . . . Robots Corrupted . | . . . Combat Hostiles . | . . . Parts Fried . | . . . Impact Corruptions . | . . . Robots Melted 1 | . . 1 Combat Hostiles 1 | . . 1 Parts Melted 7 | . 1 6 Heat Transferred 1554 | . 888 666 Parts Sabotaged . | . . . Parts Stolen . | . . . Parts Stripped . | . . . Power Chain Reactions . | . . . Alert | -11 -10 -10 ------- Run | Yrd Mat Sub Maximum Alert Level 1 | . 1 . Low Security (%) 93 | 100 93 . Level 1 6 | . 6 . Level 2 . | . . . Level 3 . | . . . Level 4 . | . . . Level 5 . | . . . High Security . | . . . Max Security . | . . . Peak Influence 240 | 10 240 . Initial . | . . . Average 62 | 4 63 . Influence Increases 476 | 10 466 . Destroy 0b10 Robot/C 260 | . 260 . Destroy 0b10 Robot/NC 60 | 10 50 . Destroy Leader 70 | . 70 . Successful Hack 10 | . 10 . Destroy Structure 1 | . 1 . Lose Combat Pursuer 75 | . 75 . Influence Decreases 476 | 10 466 . Time Decay 476 | 10 466 . Squads Dispatched 3 | . 3 . Investigation 1 | . 1 . Extermination . | . . . Reinforcement 2 | . 2 . Assault . | . . . Garrison . | . . . Intercept . | . . . Searches Triggered . | . . . Construction Impeded . | . . . Haulers Reinforced . | . . . Active Scanning Responses . | . . . Cargo Convoy Interrupts . | . . . Stealth | -11 -10 -10 --------- Run | Yrd Mat Sub Distress Signals 2 | . 2 . Communications Jammed . | . . . Distress Signals . | . . . Times Spotted 44 | . 24 20 Peak Tracking Total 12 | . 5 12 Tactical Retreats 3 | . 3 . Traps | -11 -10 -10 ------- Run | Yrd Mat Sub Traps Triggered 1 | . 1 . Indirectly . | . . . Trap Hack Attempts . | . . . Triggered . | . . . Disarmed . | . . . Reprogrammed . | . . . Reused . | . . . Traps Extracted . | . . . Installed . | . . . Triggered . | . . . Machines | -11 -10 -10 ---------- Run | Yrd Mat Sub Machines Disabled . | . . . Max in Single Turn . | . . . Machines Repaired . | . . . Machines Dismantled . | . . . Machines Sabotaged . | . . . Overloaded Fab Kills . | . . . Hacking | -11 -10 -10 --------- Run | Yrd Mat Sub Machines Accessed 7 | . 6 1 Terminals 6 | . 6 . Fabricators . | . . . Repair Stations . | . . . Recycling Units . | . . . Scanalyzers . | . . . Garrison Access . | . . . Total Hacks 26 | . 22 4 Successful 17 | . 13 4 Failed 8 | . 8 . Catastrophic 1 | . 1 . Database Lockouts 1 | . 1 . Manual 20 | . 20 . Terminals 22 | . 22 . Fabricators . | . . . Repair Stations . | . . . Recycling Units . | . . . Scanalyzers . | . . . Garrison Access . | . . . Terminal Hacks 9 | . 5 4 Record 4 | . . 4 Robot Analysis 1 | . 1 . Prototype ID Bank 1 | . 1 . Terminal Index 1 | . 1 . Locate Traps 2 | . 2 . Fabricator Hacks . | . . . Repair Station Hacks . | . . . Recycling Unit Hacks . | . . . Scanalyzer . | . . . Garrison Access Hacks . | . . . Unauthorized Hacks 8 | . 8 . Terminals 8 | . 8 . Assimilate 1 | . 1 . Botnet 1 | . 1 . Operators 1 | . 1 . Skim 5 | . 5 . Fabricators . | . . . Repair Stations . | . . . Recycling Units . | . . . Scanalyzers . | . . . Garrison Access . | . . . Data Cores Recovered . | . . . Used . | . . . Hacking Detections 4 | . 4 . Full Trace Events 1 | . 1 . Feedback Events . | . . . Feedback Blocked . | . . . Robot Schematics Acquired . | . . . Robots Built . | . . . Authchips . | . . . Time . | . . . Total Robot Build Rating . | . . . Part Schematics Acquired . | . . . Parts Built . | . . . Authchips . | . . . Time . | . . . Total Part Build Rating . | . . . Part Studies Acquired . | . . . Parts Repaired . | . . . Time . | . . . Parts Recycled . | . . . Recycled Matter . | . . . Retrieved Matter . | . . . Retrieved Components . | . . . Parts Scanalyzed . | . . . Part Schematics Acquired . | . . . Parts Damaged . | . . . Bothacking | -11 -10 -10 ------------ Run | Yrd Mat Sub Used RIF Installer . | . . . Robots Hacked . | . . . Non-combat . | . . . Combat . | . . . Robot Hacks Applied . | . . . Relay Couplers Released . | . . . Fabnet Peak Effective % . | . . . Robots Rewired . | . . . Allies Hacked . | . . . Hacks Repelled . | . . . Allies | -11 -10 -10 -------- Run | Yrd Mat Sub Total Allies . | . . . Largest Group . | . . . Highest-Rated Group . | . . . Highest-Rated Ally . | . . . Total Orders . | . . . Ally Attacks . | . . . Total Damage . | . . . Kills . | . . . Allies Corrupted . | . . . Allies Melted . | . . . Intel | -11 -10 -10 ------- Run | Yrd Mat Sub Active Infowar (turns) 1027 | 9 1018 . Seismic 1027 | 9 1018 . Robot Analysis Total 1 | . 1 . Derelict Logs Recovered 3 | . . 3 Drone Launches . | . . . Drone Recoveries . | . . . Exploration | -11 -10 -10 ------------- Run | Yrd Mat Sub Turns Passed 2463 | 32 1777 654 Spaces Moved 1408 | 15 922 471 Core . | . . . Treads 896 | . 887 9 Legs 50 | 15 35 . Wheels 462 | . . 462 Hover . | . . . Flight . | . . . Fastest Speed 100 | 120 120 100 Average Speed 143 | 120 158 115 Slowest Speed 160 | 120 160 160 Overloaded Moves . | . . . Propulsion Burnouts . | . . . Robots Hopped . | . . . Potential Cave-ins . | . . . Cave-ins Triggered . | . . . Exploration Rate (%) 46 | 3 95 40 Regions Visited 2 Branch Regions 1 Pre-discovered Areas 2 | . 1 1 Known Exits Taken . | . . . Unknown Exits Taken 2 | 1 1 . Scrap Searched . | . . . Spaces Dug 1 | . . 1 Terrain Destroyed 4 | . . 4 Melee . | . . . Projectile 4 | . . 4 AOE . | . . . Terrain Rammed . | . . . Walls Destroyed . | . . . Machines Disabled . | . . . Actions | -11 -10 -10 --------- Run | Yrd Mat Sub Total 1671 | 20 1119 532 Wait 126 | . 109 17 Move 1406 | 14 921 471 Hop . | . . . Pick Up 14 | 1 9 4 Fast Attach 8 | 1 3 4 Attach 2 | . 2 . Detach 1 | . 1 . Swap 4 | . 3 1 Drop 14 | . 6 8 Fire 88 | 4 58 26 Melee . | . . . Ram 1 | . . 1 Kick . | . . . Crush 7 | . 7 . Escape Stasis . | . . . Rewire . | . . . Trap . | . . . Miscellaneous . | . . . Route ------- -11/Scrapyard -10/Materials (discovered 5 exits: [*Mat x3] / [*Min] / *Sub) -10/Subcaves (discovered 2 exits: *Mat x2) History --------- Turn | Location | Event 14 | -11/Scrapyard | Discovered new exit (range 3) 33 | -11/Scrapyard | Entered Materials 301 | -10/Materials | Build established: Mutant 361 | -10/Materials | Core integrity fell below 50% 494 | -10/Materials | Discovered new exit (range 16) 723 | -10/Materials | Discovered new exit (range 16) 788 | -10/Materials | Central database locked down 1094 | -10/Materials | Discovered new exit (range 11) 1136 | -10/Materials | Discovered new exit (range 6) 1319 | -10/Materials | Learned 4 Subcaves zone layouts 1363 | -10/Materials | Learned location of Mines (-10) 1391 | -10/Materials | Discovered new exit (range 16) 1399 | -10/Materials | Learned location of 2 exits from Mines 1423 | -10/Materials | Learned location of 2 exits from Mines 1440 | -10/Materials | Learned location of 1 exit from Recycling 1453 | -10/Materials | Learned 4 Recycling zone layouts 1507 | -10/Materials | Learned Storage stockpile data 1810 | -10/Materials | Entered Subcaves 1814 | -10/Subcaves | Learned Materials emergency access door positions 1861 | -10/Subcaves | Identified exit to Materials 1902 | -10/Subcaves | Shifting Twisted Machinery released Battle Rifle 1909 | -10/Subcaves | Ambushed by swarm of Subdwellers 1909 | -10/Subcaves | Ambushed by Subdwellers from Twisted Machinery 1909 | -10/Subcaves | Ambushed by Subdwellers from Twisted Machinery 1909 | -10/Subcaves | Ambushed by Subdwellers from Twisted Machinery 1909 | -10/Subcaves | Ambushed by Subdwellers from Twisted Machinery 1909 | -10/Subcaves | Ambushed by Subdwellers from Twisted Machinery 1909 | -10/Subcaves | Ambushed by Subdwellers from Twisted Machinery 2198 | -10/Subcaves | Discovered exit to Materials (range 7) 2247 | -10/Subcaves | Build established: Subdweller-Mutant 2260 | -10/Subcaves | Visited Clippyterm 2263 | -10/Subcaves | Learned 2 Materials zone layouts 2264 | -10/Subcaves | Learned location of Extension (-6) 2450 | -10/Subcaves | Core integrity fell below 20% 2464 | -10/Subcaves | Destroyed by XB-JPW(R) with Subdweller Machine Gun Last Messages --------------- >>Record "LRC-V1" It looks like you're REDACTED, I can suggest REDACTED and REDACTED. Also definitely avoid REDACTED. >>Record "01-MTF" It looks like you're after the notorious thief from 0b1. I don't know where they are, but my data indicates that someone they're looking for is frequently seen in Scraptown. 02441_ Sub. Machine Gun shoots sparks and powers down. 02444_ YT-Q9X(g) destroyed. 02446_ OQ-UCW(g) destroyed. 02446_ Sub. Machine Gun shoots sparks and powers down. 02448_ Acquired 16 matter. 02450_ Slammed into XB-JPW(R). 02450_ Destabilizing: Core damaged (-2). 02455_ Scrap Shield destroyed. 02456_ Lgt. Nuclear Core destroyed. Map ----- +----------------------------------------------------+ | ????????????????# #### #???????? | | ????????????????# #?####??? | | ????????????????# #### ##?? | | ????????????????## ## #?? | | ?????????????????## ## #?? | | ??????????????????## ## #??? | | ???????????????????# ?# ##?? | | ???????????????????# #?# ## #?? | | ??????????????????# ###??# #### #?? | | ????????????????? ?????# ####??## #?? | | ??????????????? ??????# #?????## ##?? | | ??????????????? ??????# #????## ##??? | | ??????????????? ?????## #????# #???? | | ??????????????? ?#????####????# ## #???? | | ????????????????? ?? # ????????????###### ##???? | | ???????????????????? ????????#####????# #????? | | ????????????????????# ???????## ##??## ##???? | | ????????????????????# ??????## ##?# ###?? | | ????????????????????# ##????# ### #?? | | ?????????????????? ?# ###??# #?? | | ???????????????????"?# "##?### # ##?? | | ?????????????????#?""# <"""##?## ## ###??? | | ?????????????????# "" """""### #### #????? | | ???????????????????# "# """"" #*% #?# ###????? | | ?????????????????????# R%%= ##?# #??????? | | ???????????????? ""#" @ R #??## #??????? | | ?????????????? " "" #### #####???####??????? | | ????????????????### " #??###?????????????????? | | ??????????????????### ####??????????????????????? | | ????????????????????###??????????????????????????? | | ?????????????????????????????????????????????????? | | ?????????????????????????????????????????????????? | | ?????????????????????????????????????????????????? | | ?????????????????????????????????????????????????? | | ?????????????????????????????????????????????????? | | ?????????????????????????????????????????????????? | | ?????????????????????????????????????????????????? | | ?????????????????????????????????????????????????? | | ?????????????????????????????????????????????????? | | ?????????????????????????????????????????????????? | | ?????????????????????????????????????????????????? | | ?????????????????????????????????????????????????? | | ?????????????????????????????????????????????????? | | ?????????????????????????????????????????????????? | | | | | | | | | | | | | +----------------------------------------------------+ Best States ------------- Heat Dissipation 25 Energy Generation 14 Energy Capacity 160 Matter Stores 300 Matter Capacity 300 Sight Range 16 Terrain Scan Density 10 Armor Coverage 800 Evasion (%) 55 Recoil Reduction 2 Item Schematics ----------------- None Robot Schematics ------------------ None Fabricated ------------ Nothing Repaired ---------- Nothing Studied --------- None Alien Tech Used ----------------- None Achievements -------------- None Challenges ------------ None Game ------ Seed DamperCooledScreen Manual? 0 Play Time 00:12:35 Cumulative 428.1 hours Start 2026.04.28 @ 14:16:02 End 2026.04.28 @ 14:29:22 Sessions 1 Manual Loads 0 Difficulty Rogue Special Mode None Game No. 361 Rogue 325 Adventurer 36 Explorer 0 Win Type - Total 5 Types 2/0/0/1/0/0/0/2/0/0 Lore% 79 Gallery% 69 Achievement% 59 Wizard Run 0 Options --------- Layout 1 ASCII 0 Keyboard 0 Movement Mouse Keybinds 0 Fullscreen 1 Font 48/Smallcaps Map View 50x35 Zoom Use 0% Tactical HUD 1 Map Filters NONE Filters NONE Steam 1 RUN: 1a400d54-2fd0-4054-b4f8-eeb1f53f628b